fUST/lending_fUST_20250302
["ID","MTS","AMOUNT","RATE_DAILY","PERIOD"]
[355108401,1740898251150,-500.0,0.00024068,2]
[355108402,1740898251161,-2619.96,0.00024068,2]
[355108403,1740898251174,-500.0,0.00024068,2]
[355108404,1740898251185,-230.14383585,0.00024105,2]
[355108405,1740898251197,-500.0,0.00024109,2]
[355108406,1740898251208,-500.0,0.00024109,2]
[355108407,1740898251221,-500.0,0.00024109,2]
[355108408,1740898251232,-500.0,0.00024109,2]
[355108409,1740898251244,-500.0,0.00024109,2]
[355108410,1740898251258,-500.0,0.00024109,2]
[355108411,1740898251270,-2961.84,0.00024188,2]
[355108412,1740898251282,-1457.25,0.00024188,2]
[355108413,1740898251295,-500.0,0.00024188,2]
[355108414,1740898251307,-500.0,0.00024188,2]
[355108415,1740898251319,-624.35,0.00024188,2]
[355108416,1740898251331,-1820.68,0.00024188,2]
[355108417,1740898251343,-500.0,0.00024188,2]
[355108418,1740898251356,-500.0,0.00024189,2]
[355108419,1740898251368,-500.0,0.00024189,2]
[355108420,1740898251380,-500.0,0.00024189,2]
[355108421,1740898251392,-500.0,0.00024189,2]
[355108422,1740898251404,-500.0,0.00024189,2]
[355108423,1740898251416,-500.0,0.00024189,2]
[355108424,1740898251428,-500.0,0.00024189,2]
[355108425,1740898251440,-500.0,0.00024189,2]
[355108426,1740898251451,-593.96,0.00024189,2]
[355108427,1740898251464,-500.0,0.00024189,2]
[355108428,1740898251476,-500.0,0.00024189,2]
[355108429,1740898251487,-500.0,0.00024189,2]
[355108430,1740898251498,-500.0,0.00024189,2]
[355108431,1740898251514,-500.0,0.00024189,2]
[355108432,1740898251525,-4590.2,0.00024189,2]
[355108433,1740898251538,-834.08,0.00024189,2]
[355108434,1740898251549,-2471.2,0.00024189,2]
[355108435,1740898251561,-2097.83,0.00024189,2]
[355108436,1740898251573,-500.0,0.00024189,2]
[355108437,1740898251586,-50028.47,0.00024189,2]
[355108438,1740898251598,-500.0,0.00024189,2]
[355108439,1740898251610,-638.62,0.00024189,2]
[355108440,1740898251621,-989.3,0.00024189,2]
[355108441,1740898251633,-500.0,0.00024189,2]
[355108442,1740898251644,-603.23,0.00024189,2]
[355108443,1740898251656,-1020.01,0.00024189,2]
[355108444,1740898251670,-500.0,0.00024189,2]
[355108445,1740898251682,-1481.77,0.00024189,2]
[355108446,1740898251694,-2266.25,0.00024189,2]
[355108447,1740898251707,-4676.24,0.00024189,2]
[355108448,1740898251720,-2450.95,0.00024189,2]
[355108449,1740898251734,-500.0,0.00024189,2]
[355108450,1740898251747,-500.0,0.00024189,2]
[355108451,1740898251758,-500.0,0.00024189,2]
[355108452,1740898251768,-500.0,0.00024189,2]
[355108453,1740898251777,-608.01,0.00024189,2]
[355108454,1740898251788,-500.0,0.00024189,2]
[355108455,1740898252061,-1024.84,0.00024189,2]
[355108456,1740898252079,-562.39,0.00024189,2]
[355108457,1740898252089,-500.0,0.00024189,2]
[355108458,1740898252099,-699.72,0.00024189,2]
[355108459,1740898252110,-500.0,0.00024189,2]
[355108460,1740898252120,-756.69,0.00024189,2]
[355108461,1740898252130,-500.0,0.00024189,2]
[355108462,1740898252140,-3856.95,0.00024189,2]
[355108463,1740898252149,-783.23,0.00024189,2]
[355108464,1740898252159,-2945.01,0.00024189,2]
[355108465,1740898252168,-500.0,0.00024189,2]
[355108466,1740898252179,-1366.06,0.00024189,2]
[355108467,1740898252188,-500.0,0.00024189,2]
[355108468,1740898252198,-3056.88,0.00024189,2]
[355108469,1740898252208,-500.0,0.00024189,2]
[355108470,1740898252218,-792.17,0.00024189,2]
[355108471,1740898252227,-500.0,0.00024189,2]
[355108472,1740898252237,-1194.41,0.00024189,2]
[355108473,1740898252247,-721.35,0.00024189,2]
[355108474,1740898252257,-437.77,0.0002419,2]
[355108475,1740898252267,-500.0,0.0002419,2]
[355108476,1740898252276,-445.2529613,0.0002419,2]
[355108477,1740898252286,-500.0,0.0002419,2]
[355108478,1740898252295,-500.0,0.0002419,2]
[355108479,1740898252304,-379.86,0.0002419,2]
[355108480,1740898252314,-500.0,0.0002419,2]
[355108481,1740898252323,-500.0,0.0002419,2]
[355108482,1740898252333,-500.0,0.0002419,2]
[355108483,1740898252343,-1092.85,0.0002419,2]
[355108484,1740898252352,-500.0,0.0002419,2]
[355108485,1740898252362,-500.0,0.00024342,2]
[355108486,1740898252371,-565.46,0.00024342,2]
[355108487,1740898252382,-500.0,0.00024342,2]
[355108488,1740898252391,-500.0,0.00024342,2]
[355108489,1740898252401,-500.0,0.00024342,2]
[355108490,1740898252410,-558.57,0.00024342,2]
[355108491,1740898252420,-212.68,0.00024342,2]
[355108492,1740898252430,-500.0,0.00024342,2]
[355108493,1740898252439,-2619.96,0.00024342,2]
[355108494,1740898252449,-500.0,0.00024342,2]
[355108495,1740898252459,-2961.84,0.00024462,2]
[355108496,1740898252469,-1457.25,0.00024462,2]
[355108497,1740898252478,-500.0,0.00024462,2]
[355108498,1740898252488,-500.0,0.00024462,2]
[355108499,1740898252498,-624.35,0.00024462,2]
[355108500,1740898252507,-1820.68,0.00024462,2]
[355108501,1740898252517,-500.0,0.00024462,2]
[355108502,1740898252527,-406.42,0.00024463,2]
[355108503,1740898252536,-500.0,0.00024463,2]
[355108504,1740898252546,-500.0,0.00024463,2]
[355108505,1740898252556,-500.0,0.00024463,2]
[355108506,1740898252565,-500.0,0.00024463,2]
[355108507,1740898252575,-500.0,0.00024463,2]
[355108508,1740898252585,-500.0,0.00024463,2]
[355108509,1740898252596,-500.0,0.00024463,2]
[355108510,1740898252606,-593.96,0.00024463,2]
[355108511,1740898252615,-409.66952534,0.00024463,2]
[355108512,1740898252626,-500.0,0.00024463,2]
[355108513,1740898252636,-500.0,0.00024463,2]
[355108514,1740898252645,-500.0,0.00024463,2]
[355108515,1740898252654,-500.0,0.00024463,2]
[355108516,1740898252665,-4590.2,0.00024463,2]
[355108517,1740898252674,-834.08,0.00024463,2]
[355108518,1740898252684,-2471.2,0.00024463,2]
[355108519,1740898252693,-2097.83,0.00024463,2]
[355108520,1740898252704,-270.32,0.00024463,2]
[355108521,1740898252713,-50028.47,0.00024463,2]
[355108522,1740898252723,-500.0,0.00024463,2]
[355108523,1740898252733,-638.62,0.00024463,2]
[355108524,1740898252743,-989.3,0.00024463,2]
[355108525,1740898252753,-151.0,0.00024463,7]
[355108526,1740898252763,-500.0,0.00024463,2]
[355108527,1740898252773,-151.0,0.00024463,7]
[355108528,1740898252783,-603.23,0.00024463,2]
[355108529,1740898252793,-1020.01,0.00024463,2]
[355108530,1740898252802,-1481.77,0.00024463,2]
[355108531,1740898252812,-2266.25,0.00024463,2]
[355108532,1740898252822,-151.0,0.00024463,7]
[355108533,1740898252833,-151.0,0.00024463,7]
[355108534,1740898252843,-4676.24,0.00024463,2]
[355108535,1740898252852,-2450.95,0.00024463,2]
[355108536,1740898252863,-151.0,0.00024463,7]
[355108537,1740898252872,-500.0,0.00024463,2]
[355108538,1740898252882,-500.0,0.00024463,2]
[355108539,1740898252891,-500.0,0.00024463,2]
[355108540,1740898252901,-500.0,0.00024463,2]
[355108541,1740898252911,-608.01,0.00024463,2]
[355108542,1740898252920,-151.0,0.00024463,7]
[355108543,1740898252930,-1024.84,0.00024463,2]
[355108544,1740898252939,-562.39,0.00024463,2]
[355108545,1740898252949,-500.0,0.00024463,2]
[355108546,1740898252958,-699.72,0.00024463,2]
[355108547,1740898252967,-500.0,0.00024463,2]
[355108548,1740898252977,-756.69,0.00024463,2]
[355108549,1740898252987,-346.612221,0.00024463,7]
[355108550,1740898252996,-346.612221,0.00024463,7]
[355108551,1740898253008,-500.0,0.00024463,2]
[355108552,1740898253018,-3856.95,0.00024463,2]
[355108553,1740898253028,-783.23,0.00024463,2]
[355108554,1740898253037,-2945.01,0.00024463,2]
[355108555,1740898253047,-283.459187,0.00024463,7]
[355108556,1740898253057,-500.0,0.00024463,2]
[355108557,1740898253069,-1366.06,0.00024463,2]
[355108558,1740898253079,-364.96,0.00024463,2]
[355108559,1740898253088,-3056.88,0.00024463,2]
[355108560,1740898253099,-500.0,0.00024463,2]
[355108561,1740898253110,-151.0,0.00024463,7]
[355108562,1740898253120,-792.17,0.00024463,2]
[355108563,1740898253130,-500.0,0.00024463,2]
[355108564,1740898253140,-1194.41,0.00024463,2]
[355108565,1740898253151,-721.35,0.00024463,2]
[355108566,1740898253161,-151.0,0.00024463,7]
[355108567,1740898253171,-500.0,0.00024464,2]
[355108568,1740898253180,-500.0,0.00024464,2]
[355108569,1740898253190,-500.0,0.00024464,2]
[355108570,1740898253200,-500.0,0.00024464,2]
[355108571,1740898253209,-500.0,0.00024464,2]
[355108572,1740898253220,-520.91,0.00024464,2]
[355108573,1740898253229,-1092.85,0.00024464,2]
[355108574,1740898253239,-500.0,0.00024464,2]
[355108575,1740898253248,-420.0,0.00024483,2]
[355108576,1740898253260,-500.0,0.00024493,2]
[355108577,1740898253270,-500.0,0.00024493,2]
[355108578,1740898253280,-500.0,0.00024493,2]
[355108579,1740898253291,-500.0,0.00024493,2]
[355108580,1740898253300,-500.0,0.00024493,2]
[355108581,1740898253310,-500.0,0.00024493,2]
[355108582,1740898253319,-500.0,0.00024493,2]
[355108583,1740898253329,-500.0,0.00024493,2]
[355108584,1740898253339,-338.29515779,0.00024493,2]
[355108585,1740898253349,-585.01606591,0.00024493,2]
[355108586,1740898253359,-500.0,0.00024493,2]
[355108587,1740898253368,-500.0,0.00024493,2]
[355108588,1740898253378,-250.20419285,0.00024493,2]
[355108589,1740898253388,-500.0,0.00024616,2]
[355108590,1740898253399,-565.46,0.00024616,2]
[355108591,1740898253409,-500.0,0.00024616,2]
[355108592,1740898253419,-500.0,0.00024616,2]
[355108593,1740898253429,-500.0,0.00024616,2]
[355108594,1740898253438,-500.0,0.00024616,2]
[355108595,1740898253448,-2619.96,0.00024616,2]
[355108596,1740898253458,-500.0,0.00024616,2]
[355108597,1740898253468,-633.55148192,0.0002462,2]
[355108598,1740898253479,-151.0,0.00024637,7]
[355108599,1740898253488,-151.0,0.00024637,7]
[355108600,1740898253498,-151.0,0.00024637,7]
[355108601,1740898253507,-400.0,0.00024658,7]
[355108602,1740898253517,-151.0,0.00024658,7]
[355108603,1740898253526,-151.0,0.00024658,7]
[355108604,1740898253536,-151.0,0.00024658,7]
[355108605,1740898253545,-151.0,0.00024658,7]
[355108606,1740898253555,-151.0,0.00024658,7]
[355108607,1740898253564,-151.090186,0.00024658,7]
[355108608,1740898253574,-151.0,0.00024658,7]
[355108609,1740898253584,-151.0,0.00024658,7]
[355108610,1740898253594,-151.0,0.00024658,7]
[355108611,1740898253604,-151.0,0.00024658,7]
[355108612,1740898253614,-151.0,0.00024658,7]
[355108613,1740898253623,-151.0,0.00024658,7]
[355108614,1740898253632,-151.0,0.00024658,7]
[355108615,1740898253642,-151.0,0.00024658,7]
[355108616,1740898253651,-151.0,0.00024658,7]
[355108617,1740898253660,-500.0,0.00024658,2]
[355108618,1740898253670,-500.0,0.00024658,2]
[355108619,1740898253679,-500.0,0.00024658,2]
[355108620,1740898253689,-500.0,0.00024658,2]
[355108621,1740898253699,-3056.49914508,0.00024658,2]
[355108622,1740898253708,-500.0,0.00024658,2]
[355108623,1740898253717,-3056.49914508,0.00024658,2]
[355108624,1740898253728,-500.0,0.00024658,2]
[355108625,1740898253737,-413.79630745,0.00024658,2]
[355108626,1740898253746,-3056.49914508,0.00024658,2]
[355108627,1740898253756,-500.0,0.00024658,2]
[355108628,1740898253765,-500.0,0.00024658,2]
[355108629,1740898253775,-3056.49914508,0.00024658,2]
[355108630,1740898253784,-500.0,0.00024658,2]
[355108631,1740898253794,-3056.49914508,0.00024658,2]
[355108632,1740898253803,-500.0,0.00024658,2]
[355108633,1740898253813,-3056.49914508,0.00024658,2]
[355108634,1740898253824,-500.0,0.00024658,2]
[355108635,1740898253833,-500.0,0.00024658,2]
[355108636,1740898253842,-3056.49914508,0.00024658,2]
[355108637,1740898253851,-500.0,0.00024658,2]
[355108638,1740898253861,-3056.49914508,0.00024658,2]
[355108639,1740898253870,-500.0,0.00024658,2]
[355108640,1740898253881,-3056.49914508,0.00024658,2]
[355108641,1740898253890,-500.0,0.00024658,2]
[355108642,1740898253900,-3056.49914508,0.00024658,2]
[355108643,1740898253910,-500.0,0.00024658,2]
[355108644,1740898253920,-3056.49914508,0.00024658,2]
[355108645,1740898253930,-3056.49914508,0.00024658,2]
[355108646,1740898253940,-3056.49914508,0.00024658,2]
[355108647,1740898253949,-3019.32395333,0.00024658,2]
[355108648,1740898254632,-37.17519175,0.00024658,2]
[355108649,1740898254642,-3056.49914508,0.00024658,2]
[355108650,1740898254652,-168.15912117,0.00024658,2]
[355108651,1740898254672,-500.0,0.00022545,2]
[355108652,1740898254682,-500.0,0.00023246,2]
[355108653,1740898254692,-2888.34002391,0.00024658,2]
[355108654,1740898254702,-2074.90318419,0.00024658,2]
[355108657,1740899141111,-181.24347228,0.00021651,2]
[355108658,1740899240099,-196.04595721,0.00019551,2]
[355108659,1740899249196,-748.63622925,0.00019551,2]
[355108660,1740899249217,-870.13701868,0.00021543,2]
[355108661,1740899258077,-809.00350722,0.00021543,2]
[355108662,1740899258099,-335.63795782,0.00021651,2]
[355108663,1740899258122,-726.1691774,0.00021651,2]
[355108664,1740899258145,-1016.8999795,0.00022444,2]
[355108665,1740899258183,-300.0,0.00022542,2]
[355108666,1740899258209,-2601.4,0.00022543,2]
[355108667,1740899258234,-1280.3,0.00022543,2]
[355108668,1740899258259,-500.0,0.00022543,2]
[355108669,1740899258284,-1078.55,0.00022543,5]
[355108670,1740899258309,-500.0,0.00022543,2]
[355108671,1740899258334,-500.0,0.00022543,2]
[355108672,1740899258359,-500.0,0.00022543,2]
[355108673,1740899258384,-500.0,0.00022543,2]
[355108674,1740899258412,-500.0,0.00022543,2]
[355108675,1740899258437,-545.53,0.00022543,2]
[355108676,1740899258463,-1601.46,0.00022543,2]
[355108677,1740899258490,-500.0,0.00022543,2]
[355108678,1740899258516,-2693.67,0.00022543,2]
[355108679,1740899258541,-4029.58,0.00022543,2]
[355108680,1740899258568,-698.55,0.00022543,2]
[355108681,1740899258594,-2059.33,0.00022543,2]
[355108682,1740899258620,-1748.19,0.00022543,2]
[355108683,1740899258644,-500.0,0.00022543,2]
[355108684,1740899258669,-532.19,0.00022543,2]
[355108685,1740899258693,-500.0,0.00022543,2]
[355108686,1740899258719,-500.0,0.00022543,2]
[355108687,1740899258744,-850.01,0.00022543,2]
[355108688,1740899258769,-500.0,0.00022543,2]
[355108689,1740899258793,-1888.54,0.00022543,2]
[355108690,1740899258818,-3896.87,0.00022543,2]
[355108691,1740899258841,-2329.43,0.00022543,2]
[355108692,1740899258864,-535.99,0.00022544,2]
[355108693,1740899258888,-500.0,0.00022544,2]
[355108694,1740899258919,-554.79,0.00022544,2]
[355108695,1740899258944,-500.0,0.00022544,2]
[355108696,1740899258969,-541.02,0.00022544,2]
[355108697,1740899258994,-500.0,0.00022544,2]
[355108698,1740899259023,-346.88937806,0.00022544,2]
[355108699,1740899349136,-151.0,0.00022,2]
[355108761,1740899438148,-889.78748208,0.00022444,2]
[355108763,1740899438159,-155.378756,0.0002254,10]
[355108765,1740899438168,-300.0,0.00022542,2]
[355108767,1740899438178,-500.0,0.00022543,2]
[355108769,1740899438188,-506.68,0.00022543,2]
[355108771,1740899438200,-500.0,0.00022543,2]
[355108773,1740899438210,-854.04,0.00022543,2]
[355108799,1740899438453,-500.0,0.00022543,2]
[355108802,1740899438478,-500.0,0.00022543,2]
[355108804,1740899438489,-510.21,0.00022543,2]
[355108806,1740899438499,-3214.12,0.00022543,2]
[355108808,1740899438510,-2493.01,0.00022543,2]
[355108810,1740899438521,-500.0,0.00022543,2]
[355108812,1740899438531,-500.0,0.00022543,2]
[355108814,1740899438542,-500.0,0.00022543,2]
[355108816,1740899438552,-2454.17,0.00022543,2]
[355108818,1740899438562,-500.0,0.00022543,2]
[355108820,1740899438573,-1226.95,0.00022543,2]
[355108822,1740899438583,-500.0,0.00022543,2]
[355108824,1740899438597,-567.41,0.00022543,2]
[355108826,1740899438607,-1138.39,0.00022543,2]
[355108828,1740899438617,-500.0,0.00022543,2]
[355108830,1740899438627,-500.0,0.00022543,2]
[355108832,1740899438636,-500.0,0.00022543,2]
[355108834,1740899438647,-1147.35,0.00022543,2]
[355108836,1740899438657,-2292.46,0.00022543,2]
[355108838,1740899438667,-522.8,0.00022543,2]
[355108840,1740899438677,-1534.73,0.00022543,2]
[355108842,1740899438687,-2581.43,0.00022543,2]
[355108844,1740899438696,-500.0,0.00022543,2]
[355108846,1740899438706,-695.07,0.00022543,2]
[355108848,1740899438717,-500.0,0.00022543,2]
[355108850,1740899438726,-669.44,0.00022543,2]
[355108852,1740899438736,-500.0,0.00022543,2]
[355108854,1740899438746,-506.57355698,0.00022543,2]
[355108855,1740899438755,-41690.39,0.00022543,2]
[355108857,1740899438765,-892.82,0.00022544,2]
[355108859,1740899438775,-500.0,0.00022544,2]
[355108861,1740899438784,-500.0,0.00022544,2]
[355108863,1740899438795,-500.0,0.00022544,2]
[355108865,1740899438805,-500.0,0.00022544,2]
[355108866,1740899438815,-229.52,0.00022544,2]
[355108868,1740899438824,-500.0,0.00022544,2]
[355108870,1740899438834,-500.0,0.00022544,2]
[355108872,1740899438844,-197.27,0.00022544,2]
[355108873,1740899438854,-500.0,0.00022544,2]
[355108875,1740899438865,-500.0,0.00022544,2]
[355108877,1740899438875,-500.0,0.00022544,2]
[355108878,1740899438885,-500.0,0.00022544,2]
[355108879,1740899438895,-500.0,0.00022544,2]
[355108880,1740899438904,-500.0,0.00022544,2]
[355108881,1740899438914,-500.0,0.00022544,2]
[355108882,1740899438923,-500.0,0.00022544,2]
[355108883,1740899438932,-500.0,0.00022544,2]
[355108884,1740899438942,-500.0,0.00022544,2]
[355108885,1740899438951,-533.33,0.00022544,2]
[355108886,1740899438960,-500.0,0.00022544,2]
[355108887,1740899438970,-500.0,0.00022544,2]
[355108888,1740899438980,-500.0,0.00022544,2]
[355108889,1740899438990,-500.0,0.00022544,2]
[355108890,1740899438999,-512.24,0.00022544,2]
[355108891,1740899439010,-500.0,0.00022544,2]
[355108892,1740899439020,-500.0,0.00022544,2]
[355108893,1740899439029,-500.0,0.00022544,2]
[355108894,1740899439039,-500.0,0.00022544,2]
[355108895,1740899439049,-500.0,0.00022544,2]
[355108896,1740899439062,-500.0,0.00022544,2]
[355108897,1740899439072,-500.0,0.00022544,2]
[355108898,1740899439081,-500.0,0.00022544,2]
[355108899,1740899439090,-500.0,0.00022544,2]
[355108900,1740899439102,-500.0,0.00022544,2]
[355108901,1740899439112,-443.0,0.00022544,2]
[355108902,1740899439122,-431.65,0.00022544,2]
[355108903,1740899439131,-500.0,0.00022544,2]
[355108904,1740899439140,-500.0,0.00022544,2]
[355108905,1740899439150,-500.0,0.00022544,2]
[355108906,1740899439160,-500.0,0.00022544,2]
[355108907,1740899439170,-500.0,0.00022544,2]
[355108908,1740899439180,-500.0,0.00022544,2]
[355108909,1740899439190,-392.36611113,0.00022544,2]
[355108910,1740899439199,-500.0,0.00022544,2]
[355108911,1740899439210,-514.75329867,0.00022544,2]
[355108912,1740899439220,-500.0,0.00022544,2]
[355108913,1740899439230,-500.0,0.00022544,2]
[355108914,1740899439240,-500.0,0.00022544,2]
[355108915,1740899439249,-500.0,0.00022544,2]
[355108916,1740899439259,-211.27590076,0.00022544,2]
[355108917,1740899439269,-500.0,0.00022544,2]
[355108918,1740899439280,-500.0,0.00022544,2]
[355108919,1740899439290,-500.0,0.00022544,2]
[355108920,1740899439300,-250.0,0.00022544,2]
[355108921,1740899439310,-500.0,0.00022544,2]
[355108922,1740899439321,-500.0,0.00022544,2]
[355108923,1740899439331,-500.0,0.00022544,2]
[355108924,1740899439340,-500.0,0.00022544,2]
[355108925,1740899439353,-500.0,0.00022544,2]
[355108926,1740899439363,-500.0,0.00022544,2]
[355108927,1740899439373,-522.9482403,0.00022544,2]
[355108928,1740899439383,-500.0,0.00022544,2]
[355108929,1740899439393,-618.37,0.00022544,2]
[355108930,1740899439403,-500.0,0.00022544,2]
[355108931,1740899439412,-500.0,0.00022544,2]
[355108932,1740899439423,-500.0,0.00022544,2]
[355108933,1740899439432,-500.0,0.00022544,2]
[355108934,1740899439442,-410.93133337,0.00022544,2]
[355108935,1740899439455,-500.0,0.00022544,2]
[355108936,1740899439465,-500.0,0.00022544,2]
[355108937,1740899439475,-500.0,0.00022544,2]
[355108938,1740899439485,-824.41,0.00022544,2]
[355108939,1740899439496,-500.0,0.00022544,2]
[355108940,1740899439507,-500.0,0.00022544,2]
[355108941,1740899439517,-500.0,0.00022544,2]
[355108942,1740899439528,-500.0,0.00022544,2]
[355108943,1740899439538,-603.4,0.00022544,2]
[355108944,1740899439548,-336.47345813,0.00022544,2]
[355108945,1740899439558,-500.0,0.00022544,2]
[355108946,1740899439569,-502.69,0.00022544,2]
[355108947,1740899439579,-500.0,0.00022544,2]
[355108948,1740899439590,-502.72312973,0.00022544,2]
[355108949,1740899439601,-500.0,0.00022544,2]
[355108950,1740899439611,-500.0,0.00022544,2]
[355108951,1740899439621,-500.0,0.00022544,2]
[355108952,1740899439631,-1234.81,0.00022544,2]
[355108953,1740899439641,-500.0,0.00022544,2]
[355108954,1740899439650,-500.0,0.00022544,2]
[355108955,1740899439661,-500.0,0.00022544,2]
[355108956,1740899439671,-501.13,0.00022544,2]
[355108957,1740899439680,-500.0,0.00022544,2]
[355108958,1740899439690,-500.0,0.00022544,2]
[355108959,1740899439699,-500.0,0.00022544,2]
[355108960,1740899439709,-500.0,0.00022544,2]
[355108962,1740899439718,-500.0,0.00022544,2]
[355108963,1740899439727,-500.0,0.00022544,2]
[355108964,1740899439736,-500.0,0.00022544,2]
[355108965,1740899439745,-500.0,0.00022544,2]
[355108966,1740899439754,-500.0,0.00022544,2]
[355108967,1740899439764,-500.0,0.00022544,2]
[355108968,1740899439774,-502.43022774,0.00022544,2]
[355108969,1740899439783,-500.0,0.00022544,2]
[355108970,1740899439792,-500.0,0.00022544,2]
[355108971,1740899439802,-500.0,0.00022544,2]
[355108972,1740899439811,-500.0,0.00022544,2]
[355108973,1740899439820,-500.0,0.00022544,2]
[355108974,1740899439830,-658.13,0.00022544,2]
[355108975,1740899439839,-500.0,0.00022544,2]
[355108976,1740899439850,-500.0,0.00022544,2]
[355108977,1740899439860,-500.0,0.00022544,2]
[355108978,1740899439869,-500.0,0.00022544,2]
[355108979,1740899439879,-500.0,0.00022544,2]
[355108980,1740899439888,-500.0,0.00022544,2]
[355108981,1740899439898,-500.0,0.00022544,2]
[355108982,1740899439908,-500.0,0.00022544,2]
[355108983,1740899439918,-500.0,0.00022544,2]
[355108984,1740899439928,-500.0,0.00022544,2]
[355108985,1740899439938,-500.0,0.00022544,2]
[355108986,1740899439948,-650.83,0.00022544,2]
[355108987,1740899439959,-500.0,0.00022544,2]
[355108988,1740899439968,-500.0,0.00022544,2]
[355108989,1740899439978,-500.0,0.00022544,2]
[355108990,1740899439987,-500.0,0.00022544,2]
[355108991,1740899439996,-503.26235767,0.00022544,2]
[355108992,1740899440006,-500.0,0.00022544,2]
[355108993,1740899440016,-500.0,0.00022544,2]
[355108994,1740899440026,-597.01868028,0.00022544,2]
[355108995,1740899440035,-500.0,0.00022544,2]
[355108996,1740899440045,-518.13393297,0.00022544,2]
[355108998,1740899440055,-500.65654974,0.00022544,2]
[355108999,1740899440065,-500.0,0.00022544,2]
[355109000,1740899440075,-500.0,0.00022544,2]
[355109001,1740899440084,-500.0,0.00022544,2]
[355109002,1740899440096,-501.83087388,0.00022544,2]
[355109003,1740899440105,-500.0,0.00022544,2]
[355109004,1740899440115,-500.98459388,0.00022544,2]
[355109005,1740899440126,-500.0,0.00022544,2]
[355109006,1740899440136,-508.76704438,0.00022544,2]
[355109008,1740899440146,-500.0,0.00022544,2]
[355109010,1740899440156,-500.0,0.00022544,2]
[355109012,1740899440166,-505.26828346,0.00022544,2]
[355109014,1740899440175,-415.71823666,0.00022544,2]
[355109015,1740899440185,-500.0,0.00022544,2]
[355109017,1740899440195,-500.0,0.00022544,2]
[355109018,1740899440205,-500.0,0.00022544,2]
[355109019,1740899440215,-500.0,0.00022544,2]
[355109020,1740899440225,-500.0,0.00022544,2]
[355109021,1740899440235,-500.0,0.00022544,2]
[355109022,1740899440244,-500.0,0.00022544,2]
[355109023,1740899440254,-500.0,0.00022544,2]
[355109024,1740899440264,-500.0,0.00022544,2]
[355109025,1740899440274,-1690.54,0.00022544,2]
[355109026,1740899440284,-500.0,0.00022544,2]
[355109027,1740899440295,-500.0,0.00022544,2]
[355109028,1740899440304,-500.0,0.00022544,2]
[355109029,1740899440314,-500.0,0.00022544,2]
[355109030,1740899440324,-500.0,0.00022544,2]
[355109031,1740899440334,-500.0,0.00022544,2]
[355109032,1740899440343,-623.62,0.00022544,2]
[355109033,1740899440353,-500.0,0.00022544,2]
[355109034,1740899440363,-500.0,0.00022544,2]
[355109035,1740899440373,-506.83886918,0.00022544,2]
[355109036,1740899440383,-500.0,0.00022544,2]
[355109037,1740899440393,-500.0,0.00022544,2]
[355109038,1740899440403,-500.0,0.00022544,2]
[355109039,1740899440413,-500.0,0.00022544,2]